[Event "Titled Tuesday Blitz August 08 Early 2023"]
[White "Rahman, Masruri"]
[Black "Mogirzan, Matei-Valeriu"]
[WhiteFideId "7101163"]
[BlackFideId "1257455"]
[WhiteElo "2785"]
[BlackElo "2565"]
[Result "1-0"]
[Round "4"]
[TimeControl "180+1"]
[Date "2023.08.08"]
[WhiteClock "0:01:19"]
[BlackClock "0:00:47"]
[Board "63"]

1. d4 {[%clk 0:03:00]}  Nf6 {[%clk 0:02:57]} 2. Bf4 {[%clk 0:03:00]}  Nc6 {[%clk 0:02:57]} 3. Nf3 {[%clk 0:02:58]}  d6 {[%clk 0:02:55]} 4. h3 {[%clk 0:02:57]}  g6 {[%clk 0:02:55]} 5. e3 {[%clk 0:02:56]}  Bg7 {[%clk 0:02:55]} 6. c3 {[%clk 0:02:56]}  O-O {[%clk 0:02:56]} 7. Nbd2 {[%clk 0:02:55]}  Qe8 {[%clk 0:02:53]} 8. Bh2 {[%clk 0:02:54]}  e5 {[%clk 0:02:52]} 9. dxe5 {[%clk 0:02:54]}  dxe5 {[%clk 0:02:53]} 10. Bc4 {[%clk 0:02:49]}  Kh8 {[%clk 0:02:50]} 11. O-O {[%clk 0:02:48]}  Nd7 {[%clk 0:02:49]} 12. a4 {[%clk 0:02:46]}  a5 {[%clk 0:02:47]} 13. Bb5 {[%clk 0:02:46]}  e4 {[%clk 0:02:34]} 14. Nd4 {[%clk 0:02:46]}  Nxd4 {[%clk 0:02:33]} 15. cxd4 {[%clk 0:02:44]}  c6 {[%clk 0:02:33]} 16. Be2 {[%clk 0:02:42]}  f5 {[%clk 0:02:30]} 17. Nc4 {[%clk 0:02:38]}  Nf6 {[%clk 0:02:19]} 18. Nb6 {[%clk 0:02:32]}  Ra7 {[%clk 0:02:17]} 19. Bb8 {[%clk 0:02:31]}  Ra6 {[%clk 0:02:11]} 20. Bxa6 {[%clk 0:02:30]}  bxa6 {[%clk 0:02:12]} 21. Nxc8 {[%clk 0:02:29]}  Qxc8 {[%clk 0:02:12]} 22. Be5 {[%clk 0:02:29]}  g5 {[%clk 0:02:10]} 23. Rc1 {[%clk 0:02:22]}  f4 {[%clk 0:01:53]} 24. exf4 {[%clk 0:02:19]}  gxf4 {[%clk 0:01:54]} 25. Bxf4 {[%clk 0:02:19]}  Qf5 {[%clk 0:01:42]} 26. Be5 {[%clk 0:02:03]}  Bh6 {[%clk 0:01:32]} 27. Rxc6 {[%clk 0:02:01]}  Bg5 {[%clk 0:01:27]} 28. Qg4 {[%clk 0:01:48]}  Qxe5 {[%clk 0:01:03]} 29. dxe5 {[%clk 0:01:46]}  Nxg4 {[%clk 0:01:04]} 30. hxg4 {[%clk 0:01:47]}  e3 {[%clk 0:01:04]} 31. f4 {[%clk 0:01:21]}  Bxf4 {[%clk 0:01:01]} 32. Rf6 {[%clk 0:01:20]}  Rxf6 {[%clk 0:00:49]} 33. exf6 {[%clk 0:01:21]}  Bg3 {[%clk 0:00:47]} 34. f7 {[%clk 0:01:19]} 1-0


[Site "https://www.chess.com"]

[Event "Titled Tuesday Blitz August 08 Early 2023"]
[White "SmirnovAlexandrA"]
[Black "Srihari L R"]
[BlackFideId "46617116"]
[WhiteElo "2563"]
[BlackElo "2774"]
[Result "1/2-1/2"]
[Round "4"]
[TimeControl "180+1"]
[Date "2023.08.08"]
[WhiteClock "0:00:17"]
[BlackClock "0:00:04"]
[Board "64"]

1. e4 {[%clk 0:02:59]}  d6 {[%clk 0:02:51]} 2. d4 {[%clk 0:02:59]}  Nf6 {[%clk 0:02:41]} 3. Nc3 {[%clk 0:02:59]}  e5 {[%clk 0:02:39]} 4. dxe5 {[%clk 0:02:54]}  dxe5 {[%clk 0:02:39]} 5. Qxd8+ {[%clk 0:02:55]}  Kxd8 {[%clk 0:02:39]} 6. Nf3 {[%clk 0:02:55]}  Bd6 {[%clk 0:02:38]} 7. Be3 {[%clk 0:02:51]}  Ke7 {[%clk 0:02:33]} 8. a3 {[%clk 0:02:50]}  c6 {[%clk 0:02:30]} 9. O-O-O {[%clk 0:02:49]}  h6 {[%clk 0:02:30]} 10. h3 {[%clk 0:02:49]}  Be6 {[%clk 0:02:29]} 11. Be2 {[%clk 0:02:47]}  Nbd7 {[%clk 0:02:27]} 12. g4 {[%clk 0:02:47]}  g5 {[%clk 0:02:25]} 13. Ne1 {[%clk 0:02:44]}  b5 {[%clk 0:02:24]} 14. f3 {[%clk 0:02:41]}  a5 {[%clk 0:02:24]} 15. h4 {[%clk 0:02:31]}  gxh4 {[%clk 0:02:17]} 16. Ng2 {[%clk 0:02:28]}  b4 {[%clk 0:02:15]} 17. Nb1 {[%clk 0:02:27]}  Bc5 {[%clk 0:02:09]} 18. Bxc5+ {[%clk 0:02:22]}  Nxc5 {[%clk 0:02:09]} 19. Rxh4 {[%clk 0:02:23]}  h5 {[%clk 0:02:08]} 20. Rdh1 {[%clk 0:02:16]}  Rhg8 {[%clk 0:02:05]} 21. Ne3 {[%clk 0:02:04]}  hxg4 {[%clk 0:02:04]} 22. Nxg4 {[%clk 0:02:05]}  Nxg4 {[%clk 0:01:59]} 23. fxg4 {[%clk 0:02:06]}  Nxe4 {[%clk 0:01:59]} 24. Bf3 {[%clk 0:02:04]}  Nf6 {[%clk 0:01:49]} 25. Bxc6 {[%clk 0:02:03]}  Rac8 {[%clk 0:01:49]} 26. Bf3 {[%clk 0:02:00]}  Nxg4 {[%clk 0:01:48]} 27. axb4 {[%clk 0:01:50]}  axb4 {[%clk 0:01:44]} 28. Re1 {[%clk 0:01:51]}  Rc5 {[%clk 0:01:30]} 29. Nd2 {[%clk 0:01:45]}  Nf2 {[%clk 0:01:12]} 30. Rf1 {[%clk 0:01:44]}  Nd3+ {[%clk 0:01:12]} 31. Kb1 {[%clk 0:01:44]}  Nf4 {[%clk 0:01:12]} 32. Nb3 {[%clk 0:01:41]}  Bxb3 {[%clk 0:01:10]} 33. cxb3 {[%clk 0:01:42]}  Rd8 {[%clk 0:01:03]} 34. Rh6 {[%clk 0:01:37]}  Rd2 {[%clk 0:01:00]} 35. Be4 {[%clk 0:01:34]}  Re2 {[%clk 0:00:56]} 36. Bh7 {[%clk 0:01:31]}  e4 {[%clk 0:00:51]} 37. Rb6 {[%clk 0:01:18]}  Nd3 {[%clk 0:00:47]} 38. Rb7+ {[%clk 0:01:18]}  Kd6 {[%clk 0:00:41]} 39. Rf6+ {[%clk 0:01:12]}  Ke5 {[%clk 0:00:41]} 40. Rf5+ {[%clk 0:01:10]}  Kd4 {[%clk 0:00:41]} 41. Rd7+ {[%clk 0:01:03]}  Ke3 {[%clk 0:00:38]} 42. Rxd3+ {[%clk 0:01:03]}  exd3 {[%clk 0:00:36]} 43. Rxc5 {[%clk 0:01:04]}  Re1+ {[%clk 0:00:34]} 44. Ka2 {[%clk 0:00:59]}  d2 {[%clk 0:00:34]} 45. Bc2 {[%clk 0:00:59]}  Rc1 {[%clk 0:00:33]} 46. Re5+ {[%clk 0:00:54]}  Kd4 {[%clk 0:00:32]} 47. Re4+ {[%clk 0:00:55]}  Kd5 {[%clk 0:00:32]} 48. Re7 {[%clk 0:00:49]}  Rxc2 {[%clk 0:00:30]} 49. Rd7+ {[%clk 0:00:49]}  Ke4 {[%clk 0:00:28]} 50. Kb1 {[%clk 0:00:46]}  Rc1+ {[%clk 0:00:28]} 51. Ka2 {[%clk 0:00:47]}  Rd1 {[%clk 0:00:19]} 52. Rd4+ {[%clk 0:00:39]}  Ke5 {[%clk 0:00:10]} 53. Rd5+ {[%clk 0:00:38]}  Kf6 {[%clk 0:00:09]} 54. Rf5+ {[%clk 0:00:38]}  Ke6 {[%clk 0:00:08]} 55. Re5+ {[%clk 0:00:35]}  Kd6 {[%clk 0:00:07]} 56. Rd5+ {[%clk 0:00:36]}  Ke7 {[%clk 0:00:07]} 57. Re5+ {[%clk 0:00:33]}  Kf8 {[%clk 0:00:07]} 58. Re8+ {[%clk 0:00:33]}  Kg7 {[%clk 0:00:07]} 59. Rg8+ {[%clk 0:00:33]}  Kf6 {[%clk 0:00:08]} 60. Rg6+ {[%clk 0:00:32]}  Ke7 {[%clk 0:00:07]} 61. Re6+ {[%clk 0:00:29]}  Kf8 {[%clk 0:00:02]} 62. Re8+ {[%clk 0:00:29]}  Kg7 {[%clk 0:00:02]} 63. Rg8+ {[%clk 0:00:30]}  Kf6 {[%clk 0:00:03]} 64. Rg6+ {[%clk 0:00:31]}  Ke5 {[%clk 0:00:04]} 65. Re6+ {[%clk 0:00:25]}  Kd4 {[%clk 0:00:03]} 66. Re4+ {[%clk 0:00:25]}  Kd5 {[%clk 0:00:03]} 67. Re5+ {[%clk 0:00:25]}  Kd6 {[%clk 0:00:03]} 68. Re6+ {[%clk 0:00:22]}  Kc5 {[%clk 0:00:03]} 69. Rc6+ {[%clk 0:00:19]}  Kd4 {[%clk 0:00:03]} 70. Rc4+ {[%clk 0:00:19]}  Kd5 {[%clk 0:00:03]} 71. Rd4+ {[%clk 0:00:18]}  Kc5 {[%clk 0:00:03]} 72. Rc4+ {[%clk 0:00:18]}  Kb5 {[%clk 0:00:04]} 73. Rc5+ {[%clk 0:00:17]}  Ka6 {[%clk 0:00:04]} 74. Rc6+ {[%clk 0:00:17]}  Kb7 {[%clk 0:00:05]} 75. Rc7+ {[%clk 0:00:17]}  Kxc7 {[%clk 0:00:04]} 1/2-1/2


[Site "https://www.chess.com"]

[Event "Titled Tuesday Blitz August 08 Early 2023"]
[White "Tanenbaum, Zachary"]
[Black "Santos Flores, Alberto"]
[WhiteFideId "2060850"]
[BlackFideId "3601234"]
[WhiteElo "2756"]
[BlackElo "2558"]
[Result "1-0"]
[Round "4"]
[TimeControl "180+1"]
[Date "2023.08.08"]
[WhiteClock "0:00:06"]
[BlackClock "0:00:03"]
[Board "66"]

1. e4 {[%clk 0:03:00]}  e6 {[%clk 0:02:59]} 2. d4 {[%clk 0:03:00]}  d5 {[%clk 0:02:59]} 3. Nc3 {[%clk 0:03:01]}  Nf6 {[%clk 0:02:59]} 4. Bg5 {[%clk 0:03:00]}  Bb4 {[%clk 0:02:59]} 5. e5 {[%clk 0:03:00]}  h6 {[%clk 0:02:59]} 6. Bd2 {[%clk 0:03:01]}  Bxc3 {[%clk 0:02:59]} 7. bxc3 {[%clk 0:03:02]}  Ne4 {[%clk 0:02:59]} 8. Qg4 {[%clk 0:03:02]}  Kf8 {[%clk 0:03:00]} 9. Bd3 {[%clk 0:03:02]}  Nxd2 {[%clk 0:03:00]} 10. Kxd2 {[%clk 0:03:03]}  c5 {[%clk 0:03:00]} 11. h4 {[%clk 0:03:03]}  Nc6 {[%clk 0:03:00]} 12. Nf3 {[%clk 0:03:02]}  c4 {[%clk 0:02:59]} 13. Be2 {[%clk 0:03:02]}  Bd7 {[%clk 0:02:59]} 14. Qf4 {[%clk 0:02:56]}  b5 {[%clk 0:02:57]} 15. Rhb1 {[%clk 0:02:53]}  Rb8 {[%clk 0:02:53]} 16. a3 {[%clk 0:02:49]}  a5 {[%clk 0:02:52]} 17. h5 {[%clk 0:02:49]}  Qe7 {[%clk 0:02:42]} 18. g4 {[%clk 0:02:47]}  b4 {[%clk 0:02:35]} 19. axb4 {[%clk 0:02:45]}  axb4 {[%clk 0:02:36]} 20. cxb4 {[%clk 0:02:45]}  Rxb4 {[%clk 0:02:33]} 21. Qe3 {[%clk 0:02:43]}  Kg8 {[%clk 0:02:11]} 22. Rg1 {[%clk 0:02:30]}  Rb2 {[%clk 0:01:58]} 23. g5 {[%clk 0:02:13]}  Kf8 {[%clk 0:01:12]} 24. gxh6 {[%clk 0:02:06]}  Rxh6 {[%clk 0:01:11]} 25. Ra4 {[%clk 0:01:02]}  Be8 {[%clk 0:01:00]} 26. Qc3 {[%clk 0:00:58]}  Rb4 {[%clk 0:00:43]} 27. Rga1 {[%clk 0:00:55]}  Rxa4 {[%clk 0:00:43]} 28. Rxa4 {[%clk 0:00:56]}  Nxd4 {[%clk 0:00:39]} 29. Ra8 {[%clk 0:00:26]}  Nxe2 {[%clk 0:00:37]} 30. Kxe2 {[%clk 0:00:25]}  Rxh5 {[%clk 0:00:37]} 31. Qa5 {[%clk 0:00:19]}  Rf5 {[%clk 0:00:30]} 32. Ra7 {[%clk 0:00:19]}  Bd7 {[%clk 0:00:17]} 33. Qc7 {[%clk 0:00:19]}  g5 {[%clk 0:00:10]} 34. Qxd7 {[%clk 0:00:15]}  Qxd7 {[%clk 0:00:10]} 35. Rxd7 {[%clk 0:00:16]}  g4 {[%clk 0:00:11]} 36. Nd4 {[%clk 0:00:10]}  Rxe5+ {[%clk 0:00:11]} 37. Kf1 {[%clk 0:00:10]}  Re4 {[%clk 0:00:10]} 38. c3 {[%clk 0:00:08]}  Kg7 {[%clk 0:00:07]} 39. Kg2 {[%clk 0:00:08]}  Kg6 {[%clk 0:00:08]} 40. Kg3 {[%clk 0:00:08]}  Re1 {[%clk 0:00:05]} 41. Nc6 {[%clk 0:00:06]}  f5 {[%clk 0:00:03]} 42. Nd4 {[%clk 0:00:05]}  Rc1 {[%clk 0:00:03]} 43. Nxe6 {[%clk 0:00:05]}  Rxc3+ {[%clk 0:00:03]} 44. Kg2 {[%clk 0:00:04]}  Rd3 {[%clk 0:00:02]} 45. Nf4+ {[%clk 0:00:04]}  Kg5 {[%clk 0:00:03]} 46. Nxd3 {[%clk 0:00:05]}  cxd3 {[%clk 0:00:04]} 47. Rxd5 {[%clk 0:00:06]}  Kf4 {[%clk 0:00:04]} 48. Rd4+ {[%clk 0:00:06]}  Ke5 {[%clk 0:00:04]} 49. Rxd3 {[%clk 0:00:06]}  f4 {[%clk 0:00:05]} 50. Ra3 {[%clk 0:00:06]}  Ke4 {[%clk 0:00:05]} 51. Ra4+ {[%clk 0:00:07]}  Kf5 {[%clk 0:00:05]} 52. f3 {[%clk 0:00:06]}  g3 {[%clk 0:00:05]} 53. Ra5+ {[%clk 0:00:06]}  Kg6 {[%clk 0:00:05]} 54. Kh3 {[%clk 0:00:07]}  Kf6 {[%clk 0:00:06]} 55. Kg4 {[%clk 0:00:05]}  g2 {[%clk 0:00:03]} 56. Ra1 {[%clk 0:00:06]} 1-0


[Site "https://www.chess.com"]

[Event "Titled Tuesday Blitz August 08 Early 2023"]
[White "Mekhitarian, Krikor Sevag"]
[Black "FoxOnTheRun97"]
[WhiteFideId "2107660"]
[WhiteElo "2754"]
[BlackElo "2557"]
[Result "0-1"]
[Round "4"]
[TimeControl "180+1"]
[Date "2023.08.08"]
[WhiteClock "0:01:01"]
[BlackClock "0:00:47"]
[Board "67"]

1. Nf3 {[%clk 0:03:00]}  Nf6 {[%clk 0:02:58]} 2. c4 {[%clk 0:03:00]}  e6 {[%clk 0:02:56]} 3. d4 {[%clk 0:02:54]}  d5 {[%clk 0:02:56]} 4. cxd5 {[%clk 0:02:55]}  exd5 {[%clk 0:02:57]} 5. Nc3 {[%clk 0:02:55]}  c6 {[%clk 0:02:56]} 6. Bf4 {[%clk 0:02:54]}  Bd6 {[%clk 0:02:56]} 7. Bxd6 {[%clk 0:02:54]}  Qxd6 {[%clk 0:02:57]} 8. e3 {[%clk 0:02:53]}  Bf5 {[%clk 0:02:55]} 9. Nh4 {[%clk 0:02:53]}  Bg6 {[%clk 0:02:43]} 10. Qb3 {[%clk 0:02:43]}  Qe7 {[%clk 0:02:20]} 11. Nxg6 {[%clk 0:02:37]}  hxg6 {[%clk 0:02:19]} 12. Bd3 {[%clk 0:02:37]}  a5 {[%clk 0:02:06]} 13. O-O {[%clk 0:02:36]}  Qb4 {[%clk 0:02:01]} 14. Qc2 {[%clk 0:02:23]}  g5 {[%clk 0:01:49]} 15. a3 {[%clk 0:01:49]}  Qd6 {[%clk 0:01:48]} 16. g3 {[%clk 0:01:49]}  Ng4 {[%clk 0:01:42]} 17. Qe2 {[%clk 0:01:27]}  Nxh2 {[%clk 0:01:12]} 18. Rfc1 {[%clk 0:01:26]}  Qh6 {[%clk 0:01:12]} 19. Kg2 {[%clk 0:01:24]}  Qh3+ {[%clk 0:01:10]} 20. Kg1 {[%clk 0:01:01]}  g4 {[%clk 0:00:47]} 0-1


[Site "https://www.chess.com"]

[Event "Titled Tuesday Blitz August 08 Early 2023"]
[White "Al-Tarboush, Ward"]
[Black "Adewumi, Tanitoluwa"]
[WhiteFideId "7601450"]
[BlackFideId "30966396"]
[WhiteElo "2557"]
[BlackElo "2751"]
[Result "0-1"]
[Round "4"]
[TimeControl "180+1"]
[Date "2023.08.08"]
[WhiteClock "0:00:12"]
[BlackClock "0:00:35"]
[Board "68"]

1. d4 {[%clk 0:03:00]}  Nf6 {[%clk 0:02:55]} 2. Nc3 {[%clk 0:03:01]}  d5 {[%clk 0:02:52]} 3. Bg5 {[%clk 0:03:01]}  c6 {[%clk 0:02:50]} 4. Nf3 {[%clk 0:03:00]}  Bf5 {[%clk 0:02:50]} 5. e3 {[%clk 0:03:01]}  e6 {[%clk 0:02:49]} 6. Bd3 {[%clk 0:03:01]}  Bxd3 {[%clk 0:02:48]} 7. cxd3 {[%clk 0:03:02]}  Nbd7 {[%clk 0:02:48]} 8. O-O {[%clk 0:03:02]}  Be7 {[%clk 0:02:46]} 9. Ne5 {[%clk 0:03:02]}  O-O {[%clk 0:02:44]} 10. f4 {[%clk 0:03:02]}  c5 {[%clk 0:02:41]} 11. Ne2 {[%clk 0:02:44]}  cxd4 {[%clk 0:02:38]} 12. Nxd4 {[%clk 0:02:45]}  Nxe5 {[%clk 0:02:25]} 13. fxe5 {[%clk 0:02:46]}  Nd7 {[%clk 0:02:24]} 14. Bf4 {[%clk 0:02:45]}  Qb6 {[%clk 0:02:18]} 15. Qe2 {[%clk 0:02:36]}  f6 {[%clk 0:02:11]} 16. Nf3 {[%clk 0:02:22]}  fxe5 {[%clk 0:02:02]} 17. Nxe5 {[%clk 0:02:23]}  Rxf4 {[%clk 0:02:01]} 18. Rxf4 {[%clk 0:01:43]}  Nxe5 {[%clk 0:01:50]} 19. d4 {[%clk 0:01:35]}  Nc4 {[%clk 0:01:45]} 20. Raf1 {[%clk 0:01:23]}  Bf6 {[%clk 0:01:45]} 21. b3 {[%clk 0:00:58]}  Nd6 {[%clk 0:01:31]} 22. Qf3 {[%clk 0:00:24]}  Ne4 {[%clk 0:01:20]} 23. Qg4 {[%clk 0:00:20]}  Rf8 {[%clk 0:01:20]} 24. h4 {[%clk 0:00:19]}  Qd6 {[%clk 0:01:05]} 25. h5 {[%clk 0:00:19]}  h6 {[%clk 0:00:52]} 26. R4f3 {[%clk 0:00:19]}  Qe7 {[%clk 0:00:46]} 27. Rf4 {[%clk 0:00:16]}  Rc8 {[%clk 0:00:34]} 28. Qg6 {[%clk 0:00:14]}  Bg5 {[%clk 0:00:35]} 29. Rf7 {[%clk 0:00:13]}  Bxe3+ {[%clk 0:00:35]} 30. Kh1 {[%clk 0:00:12]}  Qh4# {[%clk 0:00:35]} 0-1


[Site "https://www.chess.com"]

[Event "Titled Tuesday Blitz August 08 Early 2023"]
[White "Kumsiashvili, Nikoloz"]
[Black "Mendez Fortes, Eduardo Jesus"]
[WhiteFideId "13600621"]
[BlackFideId "3502376"]
[WhiteElo "2748"]
[BlackElo "2548"]
[Result "1-0"]
[Round "4"]
[TimeControl "180+1"]
[Date "2023.08.08"]
[WhiteClock "0:00:04"]
[BlackClock "0:00:00"]
[Board "69"]

1. Nf3 {[%clk 0:03:00]}  d5 {[%clk 0:02:55]} 2. g3 {[%clk 0:03:01]}  Nf6 {[%clk 0:02:54]} 3. Bg2 {[%clk 0:03:01]}  e6 {[%clk 0:02:55]} 4. O-O {[%clk 0:03:02]}  Be7 {[%clk 0:02:50]} 5. d3 {[%clk 0:03:02]}  O-O {[%clk 0:02:50]} 6. Nbd2 {[%clk 0:03:03]}  c5 {[%clk 0:02:50]} 7. e4 {[%clk 0:03:03]}  Nc6 {[%clk 0:02:50]} 8. c3 {[%clk 0:03:01]}  b5 {[%clk 0:02:45]} 9. Re1 {[%clk 0:03:01]}  Bb7 {[%clk 0:02:45]} 10. e5 {[%clk 0:02:57]}  Nd7 {[%clk 0:02:44]} 11. Nf1 {[%clk 0:02:58]}  Qc7 {[%clk 0:02:36]} 12. Bf4 {[%clk 0:02:58]}  d4 {[%clk 0:02:29]} 13. h4 {[%clk 0:02:53]}  Nb6 {[%clk 0:02:28]} 14. Rc1 {[%clk 0:02:40]}  dxc3 {[%clk 0:02:26]} 15. bxc3 {[%clk 0:02:39]}  Rfd8 {[%clk 0:02:25]} 16. h5 {[%clk 0:02:36]}  h6 {[%clk 0:02:24]} 17. N1h2 {[%clk 0:02:30]}  Qd7 {[%clk 0:02:12]} 18. Bf1 {[%clk 0:02:20]}  Qd5 {[%clk 0:02:07]} 19. Qe2 {[%clk 0:02:11]}  c4 {[%clk 0:01:56]} 20. d4 {[%clk 0:01:54]}  Qd7 {[%clk 0:01:51]} 21. Ng4 {[%clk 0:01:47]}  Nd5 {[%clk 0:01:50]} 22. Bd2 {[%clk 0:01:27]}  Bf8 {[%clk 0:01:40]} 23. Bg2 {[%clk 0:01:13]}  Nce7 {[%clk 0:01:32]} 24. Nh4 {[%clk 0:01:09]}  Nf5 {[%clk 0:01:24]} 25. Be4 {[%clk 0:00:46]}  Nxh4 {[%clk 0:01:16]} 26. gxh4 {[%clk 0:00:45]}  Qe7 {[%clk 0:01:14]} 27. Kg2 {[%clk 0:00:35]}  b4 {[%clk 0:01:09]} 28. Rg1 {[%clk 0:00:32]}  bxc3 {[%clk 0:01:03]} 29. Bxh6 {[%clk 0:00:31]}  Kh8 {[%clk 0:00:53]} 30. Bg5 {[%clk 0:00:30]}  f6 {[%clk 0:00:53]} 31. exf6 {[%clk 0:00:21]}  gxf6 {[%clk 0:00:53]} 32. Kf1 {[%clk 0:00:14]}  fxg5 {[%clk 0:00:49]} 33. Ne5 {[%clk 0:00:14]}  Nf4 {[%clk 0:00:42]} 34. Qf3 {[%clk 0:00:13]}  Bxe4 {[%clk 0:00:40]} 35. Qxe4 {[%clk 0:00:14]}  Qh7 {[%clk 0:00:09]} 36. Ng6+ {[%clk 0:00:14]}  Nxg6 {[%clk 0:00:08]} 37. hxg6 {[%clk 0:00:15]}  Qh6 {[%clk 0:00:05]} 38. hxg5 {[%clk 0:00:12]}  Qh3+ {[%clk 0:00:05]} 39. Ke1 {[%clk 0:00:12]}  Kg8 {[%clk 0:00:02]} 40. Qb7 {[%clk 0:00:08]}  Bg7 {[%clk 0:00:01]} 41. Qf7+ {[%clk 0:00:05]}  Kh8 {[%clk 0:00:01]} 42. Rxc3 {[%clk 0:00:04]}  Qh4 {[%clk 0:00:01]} 43. Kf1 {[%clk 0:00:05]}  Rf8 {[%clk 0:00:01]} 44. Rf3 {[%clk 0:00:03]}  Rxf7 {[%clk 0:00:00]} 45. gxf7 {[%clk 0:00:04]} 1-0


[Site "https://www.chess.com"]

[Event "Titled Tuesday Blitz August 08 Early 2023"]
[White "Bettalli, Francesco"]
[Black "Trost, Edvin"]
[WhiteFideId "2816453"]
[BlackFideId "1729519"]
[WhiteElo "2548"]
[BlackElo "2747"]
[Result "0-1"]
[Round "4"]
[TimeControl "180+1"]
[Date "2023.08.08"]
[WhiteClock "0:00:41"]
[BlackClock "0:02:01"]
[Board "70"]

1. e4 {[%clk 0:03:00]}  c5 {[%clk 0:02:52]} 2. Nc3 {[%clk 0:02:58]}  e6 {[%clk 0:02:50]} 3. Nge2 {[%clk 0:02:41]}  a6 {[%clk 0:02:47]} 4. d4 {[%clk 0:02:40]}  cxd4 {[%clk 0:02:48]} 5. Nxd4 {[%clk 0:02:41]}  Qc7 {[%clk 0:02:46]} 6. Be3 {[%clk 0:02:40]}  Nf6 {[%clk 0:02:38]} 7. a3 {[%clk 0:02:37]}  b5 {[%clk 0:02:37]} 8. f4 {[%clk 0:02:22]}  Bb7 {[%clk 0:02:36]} 9. e5 {[%clk 0:02:18]}  Nd5 {[%clk 0:02:36]} 10. Nxd5 {[%clk 0:02:18]}  Bxd5 {[%clk 0:02:37]} 11. Qd2 {[%clk 0:02:14]}  Nc6 {[%clk 0:02:36]} 12. Bd3 {[%clk 0:02:12]}  Nxd4 {[%clk 0:02:31]} 13. Bxd4 {[%clk 0:02:13]}  Bc5 {[%clk 0:02:32]} 14. c3 {[%clk 0:02:10]}  g6 {[%clk 0:02:17]} 15. b4 {[%clk 0:02:08]}  Bxd4 {[%clk 0:02:15]} 16. cxd4 {[%clk 0:02:09]}  Rc8 {[%clk 0:02:16]} 17. Kf2 {[%clk 0:02:05]}  Qc3 {[%clk 0:02:16]} 18. Qxc3 {[%clk 0:01:51]}  Rxc3 {[%clk 0:02:17]} 19. Rac1 {[%clk 0:01:50]}  Rxc1 {[%clk 0:02:16]} 20. Rxc1 {[%clk 0:01:49]}  Ke7 {[%clk 0:02:17]} 21. Rc7 {[%clk 0:01:45]}  Ra8 {[%clk 0:02:17]} 22. g4 {[%clk 0:01:43]}  Bc6 {[%clk 0:02:17]} 23. d5 {[%clk 0:01:39]}  exd5 {[%clk 0:02:13]} 24. Ke3 {[%clk 0:01:18]}  Kd8 {[%clk 0:02:13]} 25. Rxc6 {[%clk 0:01:17]}  dxc6 {[%clk 0:02:13]} 26. Kd4 {[%clk 0:01:18]}  Kc7 {[%clk 0:02:11]} 27. Kc5 {[%clk 0:01:17]}  a5 {[%clk 0:02:11]} 28. f5 {[%clk 0:01:14]}  axb4 {[%clk 0:02:12]} 29. axb4 {[%clk 0:01:13]}  Ra3 {[%clk 0:02:07]} 30. Be2 {[%clk 0:01:00]}  Re3 {[%clk 0:02:02]} 31. e6 {[%clk 0:00:57]}  fxe6 {[%clk 0:02:03]} 32. fxg6 {[%clk 0:00:41]}  hxg6 {[%clk 0:02:01]} 0-1


[Site "https://www.chess.com"]

[Event "Titled Tuesday Blitz August 08 Early 2023"]
[White "Nazari, Arad"]
[Black "Keleberda, Tymur"]
[WhiteFideId "12577324"]
[BlackFideId "14174294"]
[WhiteElo "2742"]
[BlackElo "2544"]
[Result "1-0"]
[Round "4"]
[TimeControl "180+1"]
[Date "2023.08.08"]
[WhiteClock "0:00:21"]
[BlackClock "0:00:04"]
[Board "73"]

1. e4 {[%clk 0:03:00]}  c5 {[%clk 0:03:00]} 2. Nf3 {[%clk 0:03:01]}  d6 {[%clk 0:02:58]} 3. Bb5+ {[%clk 0:03:01]}  Nd7 {[%clk 0:02:58]} 4. d4 {[%clk 0:03:01]}  cxd4 {[%clk 0:02:51]} 5. Qxd4 {[%clk 0:03:02]}  a6 {[%clk 0:02:51]} 6. Bxd7+ {[%clk 0:03:02]}  Bxd7 {[%clk 0:02:51]} 7. O-O {[%clk 0:03:03]}  e5 {[%clk 0:02:51]} 8. Qd3 {[%clk 0:03:03]}  Rc8 {[%clk 0:02:50]} 9. c4 {[%clk 0:03:04]}  b5 {[%clk 0:02:50]} 10. Nfd2 {[%clk 0:03:03]}  Nf6 {[%clk 0:02:42]} 11. Nc3 {[%clk 0:03:01]}  Be7 {[%clk 0:02:28]} 12. b3 {[%clk 0:03:01]}  O-O {[%clk 0:02:27]} 13. a4 {[%clk 0:03:01]}  bxc4 {[%clk 0:02:22]} 14. Nxc4 {[%clk 0:03:01]}  Be6 {[%clk 0:02:23]} 15. Nd5 {[%clk 0:02:47]}  Nxd5 {[%clk 0:01:48]} 16. exd5 {[%clk 0:02:47]}  Bd7 {[%clk 0:01:47]} 17. Be3 {[%clk 0:02:43]}  Rb8 {[%clk 0:01:42]} 18. Rfc1 {[%clk 0:02:35]}  Rb7 {[%clk 0:01:33]} 19. a5 {[%clk 0:02:31]}  Bb5 {[%clk 0:01:32]} 20. Bb6 {[%clk 0:02:28]}  Qd7 {[%clk 0:01:30]} 21. Qg3 {[%clk 0:02:16]}  h5 {[%clk 0:01:20]} 22. Na3 {[%clk 0:01:51]}  h4 {[%clk 0:01:16]} 23. Qf3 {[%clk 0:01:49]}  Bg5 {[%clk 0:01:08]} 24. Rc6 {[%clk 0:01:38]}  e4 {[%clk 0:00:57]} 25. Qxe4 {[%clk 0:01:34]}  Re8 {[%clk 0:00:47]} 26. Qf3 {[%clk 0:01:32]}  Bxc6 {[%clk 0:00:42]} 27. dxc6 {[%clk 0:01:26]}  Qe6 {[%clk 0:00:42]} 28. Rf1 {[%clk 0:01:23]}  Rbb8 {[%clk 0:00:41]} 29. Nc2 {[%clk 0:01:10]}  Bf6 {[%clk 0:00:29]} 30. Nb4 {[%clk 0:01:02]}  Ra8 {[%clk 0:00:20]} 31. h3 {[%clk 0:00:55]}  Rec8 {[%clk 0:00:19]} 32. Rd1 {[%clk 0:00:50]}  Be5 {[%clk 0:00:19]} 33. c7 {[%clk 0:00:42]}  f5 {[%clk 0:00:15]} 34. Nd5 {[%clk 0:00:37]}  g5 {[%clk 0:00:14]} 35. Qh5 {[%clk 0:00:34]}  g4 {[%clk 0:00:10]} 36. Qg5+ {[%clk 0:00:26]}  Kf7 {[%clk 0:00:09]} 37. Ne3 {[%clk 0:00:17]}  gxh3 {[%clk 0:00:09]} 38. Nxf5 {[%clk 0:00:18]}  h2+ {[%clk 0:00:08]} 39. Kh1 {[%clk 0:00:18]}  Rg8 {[%clk 0:00:07]} 40. Nh6+ {[%clk 0:00:17]}  Kf8 {[%clk 0:00:04]} 41. Nxg8 {[%clk 0:00:18]}  Qxg8 {[%clk 0:00:05]} 42. Qf5+ {[%clk 0:00:18]}  Qf7 {[%clk 0:00:05]} 43. c8=Q+ {[%clk 0:00:19]}  Rxc8 {[%clk 0:00:05]} 44. Qxc8+ {[%clk 0:00:19]}  Kg7 {[%clk 0:00:06]} 45. Qg4+ {[%clk 0:00:20]}  Kf8 {[%clk 0:00:05]} 46. Bd4 {[%clk 0:00:20]}  Qxb3 {[%clk 0:00:05]} 47. Bxe5 {[%clk 0:00:20]}  dxe5 {[%clk 0:00:05]} 48. Kxh2 {[%clk 0:00:20]}  Ke7 {[%clk 0:00:04]} 49. Rd7+ {[%clk 0:00:21]}  Ke8 {[%clk 0:00:05]} 50. Rh7 {[%clk 0:00:19]}  e4 {[%clk 0:00:04]} 51. Qd7+ {[%clk 0:00:19]}  Kf8 {[%clk 0:00:04]} 52. Qe7+ {[%clk 0:00:20]}  Kg8 {[%clk 0:00:04]} 53. Qg7# {[%clk 0:00:21]} 1-0


[Site "https://www.chess.com"]